[Event "13th London Chess Classic 2023"]
[Site "London"]
[Date "2023.12.02"]
[Round "2.2"]
[White "Tabatabaei, M. Amin"]
[Black "McShane, Luke J"]
[Result "1-0"]
[ECO "C54"]
[WhiteElo "2694"]
[BlackElo "2626"]
[Annotator "TA"]
[PlyCount "107"]
[EventDate "2023.11.27"]
[EventType "tourn"]
[EventCountry "ENG"]
[SourceTitle "playchess.com"]
[Source "ChessBase"]
[SourceQuality "1"]
[TimeControl "40/5400+30:1800+30"]

{[%evp 10,107,24,0,23,0,19,14,9,19,36,22,47,0,6,16,27,0,4,12,10,12,12,20,19,18,10,16,15,13,27,10,10,10,13,6,15,0,0,0,0,0,0,0,0,0,0,0,0,0,0,0,0,0,0,0,0,0,0,0,0,0,0,0,0,0,0,0,0,0,0,0,0,15,665,658,593,556,495,440,12836,12836,12837,12837,12837,12837,1149,681,12845,12844,29979,12846,12845,12846,29981,29982,29990,29991,29995,29996]} 1. e4 {[%emt 0:00:07]} e5 {[%emt 0:00:32]} 2. Nf3 {[%emt 0:00:08]} Nc6 {[%emt 0:00:17]} 3. Bc4 {[%emt 0:00:08]} Bc5 {[%emt 0:00:16]} 4. c3 {[%emt 0:00:10]} Nf6 {[%emt 0:00:06]} 5. d3 {[%emt 0:00:05]} O-O {[%emt 0:02:26]} 6. Bg5 {[%emt 0:00:48]} Be7 {[%emt 0:00:26] C54: Giuoco Piano: 4 c3 Nf6, main lines with 5 d4 and 5 d3.} (6... h6 $5 {[%cal Rh6g5]} 7. Bh4 a5 $11) 7. Nbd2 {[%emt 0:00:41]} d6 {[%emt 0:00:51] 7...Na5 is more fashionable.} 8. a4 {[%emt 0:00:30] [#]} Ng4 $146 {[%emt 0:07:33] The position is equal.} ({Predecessor:} 8... h6 9. Bh4 Nh5 10. Bg3 g6 11. b4 Bf6 12. O-O Qe7 13. Re1 Nd8 14. d4 Nxg3 15. hxg3 {½-½ So,W (2776)-Anand,V (2751) Norway Masters blitz 10th 2022 (2)}) 9. Bxe7 {[%emt 0:00:49]} Qxe7 {[%emt 0:00:15]} 10. a5 {[%emt 0:00:58]} Kh8 {[%emt 0:08:32]} 11. h3 {[%emt 0:01:57]} Nf6 {[%emt 0:00:42]} 12. Nf1 {[%emt 0:07:38]} Be6 {[%emt 0:00:57]} 13. Qb3 {[%emt 0:01:04]} b6 {[%emt 0:03:45]} 14. Bxe6 {[%emt 0:01:25]} fxe6 {[%emt 0:01:04]} 15. axb6 {[%emt 0:03:03]} axb6 {[%emt 0:00:23]} 16. Rxa8 {[%emt 0:00:06]} Rxa8 {[%emt 0:00:06]} 17. Ng3 {[%emt 0:00:07]} Ra1+ {[%emt 0:10:55]} 18. Ke2 {[%emt 0:08:29][%cal Be1e2,Be2f1,Bf1g1,Bg1h2,Bh2g3,Bg3h3][%mdl 32]} (18. Kd2 {looks sharper.} Na5 19. Qc2 Ra2 20. Rb1) 18... Rxh1 {[%emt 0:00:46]} 19. Nxh1 {[%emt 0:00:07]} Nh5 {[%emt 0:00:19]} 20. Kf1 {[%emt 0:08:43]} Nd8 {[%emt 0:10:11]} 21. Qb5 {[%emt 0:03:03]} g6 {[%emt 0:00:56]} 22. Kg1 {[%emt 0:17:37]} Nf7 {[%emt 0:00:58]} 23. Kh2 {[%emt 0:00:47]} Kg7 {[%emt 0:01:24]} 24. Ng3 {[%emt 0:05:46]} Nxg3 {[%emt 0:16:15]} 25. Kxg3 $11 {[%emt 0:00:18][%mdl 4096] Endgame KQN-KQN} Qf6 {[%emt 0:09:18][%csl Ge5][%cal Rf6f4] [#]} 26. h4 {[%emt 0:04:03]} h6 {[%emt 0:02:33]} 27. Qd7 {[%emt 0:24:41]} g5 {[%emt 0:00:27]} 28. Kh3 {[%emt 0:00:09] Active counter play!} (28. Qxc7 $2 Qf4+ 29. Kh3 g4#) 28... c5 {[%emt 0:08:08]} (28... g4+ $2 29. Kxg4 Qf4+ 30. Kh3 $16) 29. h5 {[%emt 0:05:54]} c4 {[%emt 0:05:57]} 30. dxc4 {[%emt 0:01:00]} g4+ {[%emt 0:00:06][%mdl 64] [#] Decoy} 31. Kxg4 {[%emt 0:00:05] Black must now prevent g3.} Qf4+ {[%emt 0:00:03]} 32. Kh3 {[%emt 0:00:05]} Qxe4 {[%emt 0:00:03]} 33. Kh2 {[%emt 0:05:04]} (33. Qxe6 $2 Qxf3+ 34. gxf3 Ng5+ 35. Kg4 Nxe6 $19) 33... Qxc4 {[%emt 0:01:28]} 34. Kg1 {[%emt 0:00:24]} Qb3 {[%emt 0:02:20]} 35. g3 {[%emt 0:00:46]} Kf6 {[%emt 0:04:32]} 36. Nh2 {[%emt 0:01:08] Ng4+ is the strong threat.} Qd1+ {[%emt 0:02:25]} (36... Qxb2 37. Ng4+ Kg7 38. Qxe6 Qxc3 39. Ne3 $14) 37. Kg2 {[%emt 0:00:05]} Qxh5 {[%emt 0:00:51]} 38. Qb5 {[%emt 0:00:11] Dodges Qe2} d5 {[%emt 0:00:40]} 39. Qxb6 {[%emt 0:00:08]} Qd1 {[%emt 0:00:14]} 40. b4 {[%emt 0:00:00]} e4 {[%emt 0:00:00]} 41. b5 {[%emt 0:03:06] Qc5 would be deadly.} Ne5 $2 {[%emt 0:14:35][%mdl 8192] This move loses the game for Black.} (41... h5 $11) 42. Qd8+ $18 {[%emt 0:12:03]} Kf7 {[%emt 0:00:43]} 43. Qc7+ {[%emt 0:00:09]} Kf6 {[%emt 0:00:04][%cal Oe4e3]} 44. b6 {[%emt 0:01:07] Hoping for b7.} Nf3 {[%emt 0:14:09]} (44... e3 $142 45. b7 (45. fxe3 Qe2+ 46. Kh3 Qh5+ 47. Kg2 Qe2+ 48. Kh3 Qh5+ 49. Kg2 Qe2+ $11) (45. Qd8+ Kg7 $14) 45... exf2 46. Qxe5+ (46. b8=B Qg1+ 47. Kh3 f1=Q+ 48. Nxf1 Qxf1+ 49. Kh4 Qh1#) (46. Kxf2 Qd2+ 47. Kf1 Qd1+ 48. Kg2 Qc2+ 49. Kg1 Qd1+ 50. Nf1 Nf3+ 51. Kf2 Qe1+ 52. Kxf3 Qxf1+ 53. Ke3 Qe1+ 54. Kd4 Qg1+ 55. Kd3 Qd1+ 56. Ke3 Qe1+ 57. Kf3 Qf1+ 58. Ke3 Qe1+ $11) 46... Kxe5 47. b8=Q+ (47. b8=B+ $2 Ke4 $19) 47... Kf5) 45. Qf4+ {[%emt 0:04:42]} Ke7 {[%emt 0:00:31]} 46. Nxf3 {[%emt 0:00:07]} (46. Qxh6 Qg1+ 47. Kh3 Qxh2+ 48. Kg4 Qxh6 49. b7 Nh2#) 46... exf3+ {[%emt 0:00:03]} 47. Qxf3 {[%emt 0:00:29] KQ-KQ} Qb1 {[%emt 0:00:37]} 48. Qe3 {[%emt 0:00:09]} Kf7 {[%emt 0:04:17]} 49. Qf4+ {[%emt 0:00:14]} (49. Qxh6 Qxb6 50. Qf4+ Kg6 $18) 49... Ke7 {[%emt 0:00:21]} 50. Qc7+ {[%emt 0:00:07]} (50. Qxh6 Qxb6 51. Qg7+ Kd6 $18) 50... Kf6 {[%emt 0:00:04]} 51. b7 {[%emt 0:00:11]} Qe4+ {[%emt 0:00:15]} 52. Kh2 {[%emt 0:00:05] White mates.} Qe2 {[%emt 0:00:19]} 53. Qf4+ {[%emt 0:00:07]} ({And not} 53. b8=B Qxf2+ 54. Kh3 Qf1+ 55. Kh2 (55. Kh4 $2 {is a self mate.} Qh1+ 56. Kg4 h5+ 57. Kf4 Qe4#) 55... Qf2+ 56. Kh3 Qf1+ 57. Kh2 (57. Kh4 $2 {gets mated.} Qh1+ 58. Kg4 h5+ 59. Kf4 Qe4#) 57... Qf2+ $11) 53... Kg6 {[%emt 0:02:02]} 54. b8=Q {[%emt 0:00:06] Weighted Error Value: White=0.06 (flawless) /Black=0.46} 1-0

[Event "13th London Chess Classic 2023"]
[Site "London"]
[Date "2023.12.02"]
[Round "2.3"]
[White "Niemann, Hans Moke"]
[Black "Adams, Michael"]
[Result "1/2-1/2"]
[ECO "A20"]
[WhiteElo "2659"]
[BlackElo "2670"]
[Annotator "ChessBase"]
[PlyCount "68"]
[EventDate "2023.11.27"]
[EventType "tourn"]
[EventCountry "ENG"]
[SourceTitle "playchess.com"]
[Source "ChessBase"]
[SourceQuality "1"]
[TimeControl "40/5400+30:1800+30"]

1. c4 {[%emt 0:00:07]} e5 {[%emt 0:00:10]} 2. g3 {[%emt 0:00:19]} c6 {[%emt 0:00:14]} 3. Nf3 {[%emt 0:01:51]} e4 {[%emt 0:00:08]} 4. Nd4 {[%emt 0:00:09]} d5 {[%emt 0:00:08]} 5. cxd5 {[%emt 0:00:09]} Qxd5 {[%emt 0:00:05]} 6. Nc2 {[%emt 0:00:11]} Nf6 {[%emt 0:00:18]} 7. Nc3 {[%emt 0:00:08]} Qe5 {[%emt 0:00:22]} 8. Bg2 {[%emt 0:00:11]} Na6 {[%emt 0:00:52]} 9. O-O {[%emt 0:00:18]} Be7 {[%emt 0:01:13]} 10. Ne3 {[%emt 0:00:21]} O-O {[%emt 0:05:26]} 11. a3 {[%emt 0:00:13]} Nc7 {[%emt 0:06:03]} 12. b4 {[%emt 0:00:59]} Nfd5 {[%emt 0:02:31]} 13. Nexd5 {[%emt 0:02:42]} Nxd5 {[%emt 0:06:31]} 14. Bb2 {[%emt 0:00:17]} Bf5 {[%emt 0:02:13]} 15. Qc2 {[%emt 0:01:18]} Nxc3 {[%emt 0:02:56]} 16. Bxc3 {[%emt 0:00:10]} Qe6 {[%emt 0:00:13]} 17. Qb2 {[%emt 0:00:22]} Qg6 {[%emt 0:04:14]} 18. b5 {[%emt 0:04:32]} h5 {[%emt 0:11:47]} 19. a4 {[%emt 0:05:29]} h4 {[%emt 0:03:34]} 20. a5 {[%emt 0:00:33]} a6 {[%emt 0:09:33]} 21. bxa6 {[%emt 0:00:42]} bxa6 {[%emt 0:00:04]} 22. Ra4 {[%emt 0:00:08]} Rfe8 {[%emt 0:02:08]} 23. Qb6 {[%emt 0:05:51]} Bf8 {[%emt 0:09:30]} 24. Rc4 {[%emt 0:04:16]} Re6 {[%emt 0:07:56]} 25. Qb7 {[%emt 0:15:12]} Rae8 {[%emt 0:01:38]} 26. Qxa6 {[%emt 0:00:25]} c5 {[%emt 0:01:30]} 27. Qb5 {[%emt 0:00:42]} Qh5 {[%emt 0:03:31]} 28. a6 {[%emt 0:01:32]} h3 {[%emt 0:06:09]} 29. Bh1 {[%emt 0:00:12]} Qxe2 {[%emt 0:00:08]} 30. Rxc5 {[%emt 0:05:07]} Bg4 {[%emt 0:00:53]} 31. Qxe2 {[%emt 0:03:54]} Bxe2 {[%emt 0:00:04]} 32. Ra5 {[%emt 0:00:08]} Rxa6 {[%emt 0:06:07]} 33. Rxa6 {[%emt 0:00:09]} Bxa6 {[%emt 0:00:02]} 34. Re1 {[%emt 0:00:11]} f5 {[%emt 0:03:03]} 1/2-1/2

[Event "13th London Chess Classic 2023"]
[Site "London"]
[Date "2023.12.02"]
[Round "2.4"]
[White "Bartel, Mateusz"]
[Black "Moussard, Jules"]
[Result "1-0"]
[ECO "A17"]
[WhiteElo "2651"]
[BlackElo "2639"]
[Annotator "ChessBase"]
[PlyCount "59"]
[EventDate "2023.11.27"]
[EventType "tourn"]
[EventCountry "ENG"]
[SourceTitle "playchess.com"]
[Source "ChessBase"]
[SourceQuality "1"]
[TimeControl "40/5400+30:1800+30"]

1. Nf3 {[%emt 0:00:04]} Nf6 {[%emt 0:01:56]} 2. c4 {[%emt 0:00:08]} e6 {[%emt 0:01:39]} 3. Nc3 {[%emt 0:00:08]} Bb4 {[%emt 0:05:04]} 4. Qb3 {[%emt 0:05:06]} c5 {[%emt 0:04:54]} 5. a3 {[%emt 0:00:10]} Ba5 {[%emt 0:07:53]} 6. g4 {[%emt 0:13:24]} h6 {[%emt 0:07:32]} 7. Rg1 {[%emt 0:05:24]} Nc6 {[%emt 0:10:28]} 8. h4 {[%emt 0:11:56]} Nd4 {[%emt 0:11:02]} 9. Nxd4 {[%emt 0:01:16]} cxd4 {[%emt 0:00:04]} 10. Nb5 {[%emt 0:00:09]} d5 {[%emt 0:01:27]} 11. c5 {[%emt 0:07:21]} Ne4 {[%emt 0:01:25]} 12. Nxd4 {[%emt 0:04:53]} Nxc5 {[%emt 0:03:38]} 13. Qb5+ {[%emt 0:01:45]} Nd7 {[%emt 0:00:17]} 14. b4 {[%emt 0:02:50]} Bb6 {[%emt 0:05:46]} 15. Bb2 {[%emt 0:00:23]} a6 {[%emt 0:10:00]} 16. Qa4 {[%emt 0:00:34]} O-O {[%emt 0:00:46]} 17. g5 {[%emt 0:03:22]} Ne5 {[%emt 0:02:34]} 18. gxh6 {[%emt 0:08:46]} g6 {[%emt 0:00:33]} 19. Qb3 {[%emt 0:06:24]} Qxh4 {[%emt 0:06:04]} 20. h7+ {[%emt 0:03:55]} Kh8 {[%emt 0:02:10]} 21. Qe3 {[%emt 0:10:25]} f6 {[%emt 0:03:15]} 22. Nf3 {[%emt 0:01:51]} Nxf3+ {[%emt 0:00:26]} 23. Qxf3 {[%emt 0:00:03]} e5 {[%emt 0:00:30]} 24. Rxg6 {[%emt 0:00:05]} Be6 {[%emt 0:01:06]} 25. Rc1 {[%emt 0:00:26]} Rf7 {[%emt 0:03:34]} 26. e3 {[%emt 0:04:52]} Re8 {[%emt 0:00:38]} 27. Bd3 {[%emt 0:01:28]} Bd8 {[%emt 0:01:57]} 28. Bxe5 {[%emt 0:02:20]} Rxh7 {[%emt 0:03:44]} 29. Rxf6 {[%emt 0:01:55]} Qh1+ {[%emt 0:00:10]} 30. Ke2 {[%emt 0:00:15]} 1-0

[Event "13th London Chess Classic 2023"]
[Site "London"]
[Date "2023.12.02"]
[Round "2.5"]
[White "Vitiugov, Nikita"]
[Black "Gukesh D"]
[Result "1/2-1/2"]
[ECO "D14"]
[WhiteElo "2712"]
[BlackElo "2746"]
[Annotator "TA"]
[PlyCount "155"]
[EventDate "2023.11.27"]
[EventType "tourn"]
[EventCountry "ENG"]
[SourceTitle "playchess.com"]
[Source "ChessBase"]
[SourceQuality "1"]
[TimeControl "40/5400+30:1800+30"]

{[%evp 17,154,15,19,23,44,42,33,44,29,27,25,35,33,47,45,38,41,44,43,44,54,43,46,39,71,60,95,97,93,88,88,65,63,59,40,50,58,60,60,40,40,40,40,8,8,0,0,0,8,0,0,0,0,0,0,0,8,8,8,8,17,17,195,197,206,180,567,539,437,395,2211,1957,2598,2111,1752,1536,1404,781,29957,29957,5506,7092,6863,2347,5946,0,1478,125,125,125,125,125,125,125,125,125,125,125,125,125,125,125,125,125,125,61,61,0,125,0,125,125,125,125,125,0,0,0,0,0,0,0,0,0,0,0,0,0,0,0,0,0,0,0,0,0,0,0,0]} 1. d4 {[%emt 0:00:10]} d5 {[%emt 0:00:11]} 2. c4 {[%emt 0:00:15]} c6 {[%emt 0:00:17]} 3. Nf3 {[%emt 0:00:37]} Nf6 {[%emt 0:00:07]} 4. cxd5 {[%emt 0:00:34]} cxd5 {[%emt 0:00:08]} 5. Nc3 {[%emt 0:00:04]} Nc6 {[%emt 0:00:17]} 6. Bf4 {[%emt 0:00:19]} Bf5 {[%emt 0:04:54]} 7. e3 {[%emt 0:00:40]} e6 {[%emt 0:00:15]} 8. Ne5 {[%emt 0:00:56] 8.Qb3 is the modern continuation.} Nd7 {[%emt 0:16:48]} 9. Nxc6 {[%emt 0:00:24]} bxc6 {[%emt 0:00:05]} 10. a3 {[%emt 0:01:02] D14: Slav Defence: Exchange variation with ...Bf5.} Be7 {[%emt 0:01:30]} 11. Be2 {[%emt 0:01:09]} O-O {[%emt 0:00:53] [#]} 12. Rc1 $146 {[%emt 0:00:19] White is slightly better.} ({Predecessor:} 12. O-O Bf6 13. Na4 e5 14. dxe5 Nxe5 15. Rc1 Rc8 16. Re1 Re8 17. h3 Qe7 18. Ba6 {0-1 Girya,O (2328)-Goryachkina,A (2484) Wch Rapid (Women) 2022 (5)}) 12... c5 {[%emt 0:06:40]} 13. dxc5 {[%emt 0:00:22]} Nxc5 {[%emt 0:03:34]} 14. b4 {[%emt 0:00:27]} Ne4 {[%emt 0:02:48]} 15. Nxe4 {[%emt 0:02:23]} Bxe4 {[%emt 0:00:05]} 16. O-O {[%emt 0:00:14]} Bd6 {[%emt 0:13:19]} 17. Bxd6 {[%emt 0:05:53]} Qxd6 {[%emt 0:00:06]} 18. Qd2 {[%emt 0:14:15]} Rfc8 {[%emt 0:16:07]} 19. Rc3 {[%emt 0:06:05]} e5 {[%emt 0:03:23]} 20. Rfc1 {[%emt 0:05:01]} Rd8 {[%emt 0:06:48]} 21. Rc7 {[%emt 0:16:38]} d4 {[%emt 0:04:48][%cal Oa7a5]} 22. f3 {[%emt 0:03:13]} Bd5 {[%emt 0:00:48]} 23. exd4 {[%emt 0:01:16]} Be6 {[%emt 0:01:10] [#]} 24. d5 $1 {[%emt 0:05:16]} Qb6+ {[%emt 0:00:46] Black is weak on the light squares} 25. R1c5 {[%emt 0:04:01] And now R7c6 would win. White has more active pieces.} Rxd5 {[%emt 0:00:51]} 26. Qe3 {[%emt 0:00:08]} Rxc5 {[%emt 0:05:03]} 27. Qxc5 {[%emt 0:01:18]} f6 {[%emt 0:07:26]} 28. Kf1 {[%emt 0:08:46]} Qxc5 {[%emt 0:00:15]} 29. Rxc5 {[%emt 0:00:09]} Rc8 {[%emt 0:01:05]} 30. Rxc8+ {[%emt 0:04:36]} Bxc8 $14 {[%emt 0:00:01][%mdl 4096] Endgame KB-KB} 31. Bc4+ {[%emt 0:00:53]} Kf8 {[%emt 0:00:01]} 32. Ke2 {[%emt 0:00:06]} Ke7 {[%emt 0:00:24]} 33. Kd3 {[%emt 0:00:27]} f5 {[%emt 0:00:17]} 34. a4 {[%emt 0:06:08]} g5 {[%emt 0:00:58]} 35. Bd5 {[%emt 0:03:14]} Kd6 {[%emt 0:02:55]} 36. Kc4 {[%emt 0:01:18]} Bd7 {[%emt 0:01:59]} 37. b5 {[%emt 0:00:30]} h6 {[%emt 0:00:55]} 38. Ba8 {[%emt 0:04:27]} Be6+ {[%emt 0:00:12]} 39. Kb4 {[%emt 0:00:04]} Bf7 $2 {[%emt 0:01:14] [#]} (39... Bc8 $11 {and Black stays safe.}) 40. a5 $1 $18 {[%emt 0:00:00][%cal Ba4a5,Ba5b6][%mdl 32] Strongly threatening b6.} Kc7 {[%emt 0:00:00]} 41. Kc5 {[%emt 0:03:55]} Bb3 $2 {[%emt 0:00:52]} (41... h5 42. b6+ Kb8) 42. Bc6 {[%emt 0:11:01]} Bc2 {[%emt 0:04:40]} 43. b6+ {[%emt 0:01:09]} axb6+ $2 {[%emt 0:00:05]} (43... Kb8 44. g3 f4 45. bxa7+ Kxa7) 44. axb6+ {[%emt 0:00:02]} Kb8 {[%emt 0:00:05] [#]} 45. Kd5 $1 {[%emt 0:05:00]} e4 {[%emt 0:00:11]} 46. Kd4 {[%emt 0:00:14][%cal Rf3e4]} exf3 {[%emt 0:00:06]} 47. Bxf3 {[%emt 0:02:56]} ({Weaker is} 47. gxf3 f4 $16) 47... f4 {[%emt 0:00:57]} 48. Ke5 {[%emt 0:01:14]} Bg6 {[%emt 0:05:12]} 49. Kf6 {[%emt 0:01:02]} Be8 {[%emt 0:00:07]} 50. Ke7 {[%emt 0:04:47]} (50. Be4 $142 g4 51. Kf5 Bd7+ 52. Kxf4) 50... Bb5 {[%emt 0:03:58]} 51. Kf6 {[%emt 0:01:40]} (51. h3 $142 Bf1 52. Kf6) 51... Be8 $1 {[%emt 0:01:42]} 52. Kg7 $2 {[%emt 0:04:33]} (52. Bd5 $18 Bb5 53. Kg6) 52... h5 $16 {[%emt 0:00:06]} 53. Kf6 {[%emt 0:00:13]} g4 {[%emt 0:00:05]} 54. Be4 {[%emt 0:00:10]} f3 {[%emt 0:04:44]} 55. gxf3 {[%emt 0:00:16]} gxf3 {[%emt 0:00:04]} 56. Bxf3 {[%emt 0:00:15]} h4 {[%emt 0:00:02]} 57. Kg5 {[%emt 0:00:43]} h3 {[%emt 0:00:06]} 58. Kh4 {[%emt 0:00:56]} Bd7 {[%emt 0:00:04]} 59. Kg3 {[%emt 0:00:03]} Be6 {[%emt 0:01:45]} 60. Kf4 {[%emt 0:00:03]} Bd7 {[%emt 0:02:33]} 61. Bg4 {[%emt 0:01:43]} (61. Ke5 $16) 61... Be8 $14 {[%emt 0:00:56]} 62. Bf3 {[%emt 0:02:20]} ({Much less strong is} 62. Bxh3 Kb7 63. Ke5 Kxb6 $16) ({White should try} 62. Ke5 $14 Kb7 63. Bxh3) 62... Bd7 $1 $16 {[%emt 0:00:29]} 63. Kg5 {[%emt 0:00:03]} Be8 $1 {[%emt 0:02:30]} 64. Kf5 {[%emt 0:00:39]} Bb5 {[%emt 0:02:17]} 65. Ke5 {[%emt 0:00:14]} Bf1 {[%emt 0:02:12]} 66. Kf4 {[%emt 0:03:29]} (66. Kd6 $16) 66... Bg2 $11 {[%emt 0:00:06] The position is equal.} 67. Kg3 {[%emt 0:00:36]} Bxf3 {[%emt 0:00:18][%mdl 64] Remove Defender} 68. Kxf3 {[%emt 0:00:02] Intending Kg4 and mate. KPP-KP} Kb7 {[%emt 0:00:04]} 69. Kg4 {[%emt 0:00:02]} Kxb6 {[%emt 0:00:03]} 70. Kxh3 {[%emt 0:00:03] KP-K} Kc7 {[%emt 0:00:04]} 71. Kg4 {[%emt 0:00:02] White threatens Kf5 and mate.} Kd7 {[%emt 0:00:04]} 72. Kg5 {[%emt 0:00:02]} Ke7 {[%emt 0:00:04]} 73. Kg6 {[%emt 0:00:02] Kg7 would kill now.} Kf8 {[%emt 0:00:03]} 74. h4 {[%emt 0:00:03][%cal Bh2h4,Bh4h5,Bh5h6,Bh6h7][%mdl 32]} (74. h3 $5) 74... Kg8 {[%emt 0:00:02]} 75. h5 {[%emt 0:00:02]} Kh8 {[%emt 0:00:04]} 76. h6 {[%emt 0:00:01]} Kg8 {[%emt 0:00:03]} 77. h7+ {[%emt 0:00:02]} Kh8 {[%emt 0:00:01]} 78. Kh6 {[%emt 0:00:04] White really could win this.   Weighted Error Value: White=0.32/Black=0.35} 1/2-1/2

[Event "13th London Chess Classic 2023"]
[Site "London"]
[Date "2023.12.03"]
[Round "3.1"]
[White "Gukesh D"]
[Black "Volokitin, Andrei"]
[Result "1-0"]
[ECO "A34"]
[WhiteElo "2746"]
[BlackElo "2660"]
[Annotator "TA"]
[PlyCount "55"]
[EventDate "2023.11.27"]
[EventType "tourn"]
[EventCountry "ENG"]
[SourceTitle "playchess.com"]
[Source "ChessBase"]
[SourceQuality "1"]
[TimeControl "40/5400+30:1800+30"]

{[%evp 14,55,0,-4,11,0,13,15,10,0,9,0,72,75,104,18,37,33,37,28,54,57,64,17,11,11,112,97,197,183,420,427,863,860,749,848,1058,1074,1048,1030,1046,1027,5018,4886]} 1. c4 {[%emt 0:00:07]} Nf6 {[%emt 0:00:42]} 2. Nc3 {[%emt 0:00:18]} c5 {[%emt 0:00:23]} 3. g3 {[%emt 0:00:15]} d5 {[%emt 0:00:26]} 4. cxd5 {[%emt 0:00:06]} Nxd5 {[%emt 0:00:02]} 5. Bg2 {[%emt 0:00:07]} Nc7 {[%emt 0:00:04]} 6. b3 {[%emt 0:00:34]} e5 {[%emt 0:04:01]} 7. Bb2 {[%emt 0:00:06]} Be7 {[%emt 0:00:08]} 8. Rc1 {[%emt 0:00:18]} O-O {[%emt 0:02:23] [#] A34: Symmetrical English: 2 Nc3, lines with ...d5.} 9. Ne4 $146 {[%emt 0:00:25][%csl LRc5,LRe5]} ({Predecessor:} 9. Na4 Nd7 10. Nf3 f6 11. O-O Rb8 12. e3 b5 13. Nc3 Bb7 14. d3 a6 15. Ne4 Ne6 16. Qe2 {0-1 Mkrtchian,L (2434)-Ju,W (2558) China Elite Mind blitz (Women) 2016 (17)}) 9... b6 {[%emt 0:12:52]} 10. Bxe5 {[%emt 0:00:09][%cal Oe4c5] With the idea Nxc5!} (10. Nc3 Qd7 $14) 10... Bb7 {[%emt 0:00:24] The position is equal.} 11. Ba1 {[%emt 0:00:08][%cal Oe4f6] Black must now prevent Nf6+!} Qc8 {[%emt 0:22:51] And now ...f5 would win.} (11... Bc6 $5 {[%cal Rf7f5]} 12. f3 f5 $11) 12. g4 {[%emt 0:01:23]} Ne6 {[%emt 0:28:06]} ({Much less strong is} 12... Qxg4 13. Nf6+ Bxf6 14. Bxb7 Bxa1 15. Rxa1 $14) (12... f6 $11) 13. Nh3 $16 {[%emt 0:15:19]} Nc6 {[%emt 0:01:28][%cal Bb8c6,Bc6b4,Bb4a2][%mdl 32]} 14. e3 {[%emt 0:19:46] Against Ned4. White is more active.} ({White should play} 14. O-O $1 $16) 14... Nb4 {[%emt 0:15:59] Hoping for ...Nd3+.} 15. O-O $1 {[%emt 0:01:55]} Nxa2 {[%emt 0:00:19]} 16. Rb1 {[%emt 0:00:50]} Nb4 {[%emt 0:03:43]} 17. f4 {[%emt 0:07:19][%cal Bf2f4,Bf4f5][%mdl 32] f5 would be deadly.} f6 {[%emt 0:02:39]} 18. Qf3 {[%emt 0:10:43]} (18. f5 $14 Ng5 19. Nhxg5 fxg5 20. f6 gxf6 21. Rf5) 18... Bc6 $11 {[%emt 0:00:59]} 19. f5 {[%emt 0:03:37]} Nc7 {[%emt 0:01:39] [#]} (19... Ng5 $1 $11 {keeps the balance.} 20. Nhxg5 fxg5) 20. g5 $1 $16 {[%emt 0:05:17]} fxg5 {[%emt 0:00:14] [#]} (20... Rb8 $16) 21. Qg3 $1 $18 {[%emt 0:01:21] f6 is the strong threat.} h6 $2 {[%emt 0:00:42]} (21... Bxe4 {might work better.} 22. Bxe4 Qd8) 22. f6 {[%emt 0:00:40]} gxf6 {[%emt 0:00:47]} (22... Bxf6 $142 23. Bxf6 Bxe4 24. Bxg7 (24. Bxe4 gxf6 25. Bxa8 Nxa8 $14) 24... Rxf1+ 25. Rxf1 Bxg2 26. Rf8+ Qxf8 27. Bxf8 Rxf8) 23. Bxf6 {[%emt 0:02:11] White wants to mate with Nhxg5.} Bxe4 {[%emt 0:00:31]} 24. Nxg5 {[%emt 0:00:50][%cal Bh3g5,Bg5e4,Be4f6][%mdl 32]} Bxf6 {[%emt 0:00:23]} 25. Rxf6 {[%emt 0:00:21]} (25. Bxe4 $2 {is the wrong capture.} hxg5 26. Bxa8 Nxa8 $19) 25... Rxf6 {[%emt 0:00:40]} 26. Nxe4+ {[%emt 0:00:11][%mdl 64] Discovered Attack} Kh8 {[%emt 0:00:24]} 27. Nxf6 {[%emt 0:00:07][%cal Og3g6][%mdl 64] Intending Qg6! and mate. Discovered Attack} Qf5 {[%emt 0:00:40] Prevents Qg6} 28. Rf1 {[%emt 0:00:07] An entertaining game by Gukesh D.   Weighted Error Value: White=0.10 (very precise) /Black=0.54} 1-0